[Event "Catalan Youth-ch 2020"]
[Site "Salou"]
[Date "2020.09.06"]
[Round "2.2"]
[White "Moles Benali, Joan"]
[Black "Ano Pla, Gerard"]
[Result "0-1"]
[ECO "E11"]
[WhiteElo "1677"]
[BlackElo "1993"]
[Annotator "ChessBase"]
[PlyCount "100"]
[EventDate "2020.09.07"]
[EventType "swiss"]
[EventCountry "ESP"]
[SourceTitle "playchess.com"]
[Source "ChessBase"]
[SourceQuality "1"]
[TimeControl "5400+30"]

1. d4 {[%emt 0:00:00]} Nf6 {[%emt 0:00:00]} 2. Nf3 {[%emt 0:00:00]} e6 {[%emt 0:00:00]} 3. g3 {[%emt 0:00:03]} d5 {[%emt 0:00:00]} 4. c4 {[%emt 0:00:31]} Bb4+ {[%emt 0:00:00]} 5. Bd2 {[%emt 0:01:10]} Be7 {[%emt 0:00:00]} 6. Bg2 {[%emt 0:01:21]} O-O {[%emt 0:00:00]} 7. b3 {[%emt 0:13:45]} c6 {[%emt 0:00:08]} 8. O-O {[%emt 0:04:41]} Nbd7 {[%emt 0:00:32]} 9. Nc3 {[%emt 0:00:56]} b6 {[%emt 0:00:26]} 10. Rc1 {[%emt 0:00:40]} Bb7 {[%emt 0:00:30]} 11. Bg5 {[%emt 0:08:29]} Rc8 {[%emt 0:11:39]} 12. Qd2 {[%emt 0:20:47]} c5 {[%emt 0:00:00]} 13. cxd5 {[%emt 0:10:47]} Nxd5 {[%emt 0:08:05]} 14. Bxe7 {[%emt 0:00:00]} Qxe7 {[%emt 0:09:24]} 15. Nxd5 {[%emt 0:02:54]} exd5 {[%emt 0:00:00]} 16. e3 {[%emt 0:02:31]} Rfd8 {[%emt 0:00:00]} 17. Rfd1 {[%emt 0:04:03]} Nf6 {[%emt 0:00:00]} 18. Ne5 {[%emt 0:03:48]} Ne4 {[%emt 0:01:32]} 19. Qb2 {[%emt 0:03:30]} f6 {[%emt 0:01:59]} 20. Nd3 {[%emt 0:03:12]} Rc7 {[%emt 0:07:23]} 21. h3 {[%emt 0:08:55]} Rdc8 {[%emt 0:09:50]} 22. dxc5 {[%emt 0:00:00]} bxc5 {[%emt 0:00:29]} 23. Nf4 {[%emt 0:01:21]} Rd8 {[%emt 0:01:23]} 24. a3 {[%emt 0:00:55]} Rcd7 {[%emt 0:09:42]} 25. b4 {[%emt 0:00:00]} c4 {[%emt 0:08:06]} 26. Qd4 {[%emt 0:00:00]} Qe5 {[%emt 0:03:20]} 27. Qxe5 {[%emt 0:00:00]} fxe5 {[%emt 0:00:09]} 28. Ne6 {[%emt 0:00:00]} Re8 {[%emt 0:01:17]} 29. Bxe4 {[%emt 0:00:00]} Rxe6 {[%emt 0:00:58]} 30. Bf5 {[%emt 0:00:00]} Rde7 {[%emt 0:00:05]} 31. Bxe6+ {[%emt 0:00:00]} Rxe6 {[%emt 0:00:05]} 32. e4 {[%emt 0:00:00]} d4 {[%emt 0:01:57]} 33. Rxc4 {[%emt 0:00:04]} Bxe4 {[%emt 0:00:06]} 34. Rc8+ {[%emt 0:00:46]} Kf7 {[%emt 0:00:28]} 35. Rc7+ {[%emt 0:00:00]} Kf6 {[%emt 0:04:41]} 36. Rxa7 {[%emt 0:00:07]} Bf3 {[%emt 0:03:49]} 37. Rc1 {[%emt 0:01:47]} Rd6 {[%emt 0:02:06]} 38. Rc2 {[%emt 0:01:25]} d3 {[%emt 0:00:26]} 39. Rd2 {[%emt 0:00:01]} Rc6 {[%emt 0:00:18]} 40. g4 {[%emt 0:02:58]} e4 {[%emt 0:03:01]} 41. b5 {[%emt 0:00:00]} Rc1+ {[%emt 0:00:59]} 42. Kh2 {[%emt 0:00:00]} g5 {[%emt 0:00:21]} 43. Ra6+ {[%emt 0:00:55]} Ke5 {[%emt 0:00:21]} 44. b6 {[%emt 0:00:13]} Rh1+ {[%emt 0:00:12]} 45. Kg3 {[%emt 0:00:02]} Rg1+ {[%emt 0:00:50]} 46. Kh2 {[%emt 0:00:05]} Rg2+ {[%emt 0:00:10]} 47. Kh1 {[%emt 0:00:09]} Rxf2+ {[%emt 0:00:05]} 48. Kg1 {[%emt 0:00:10]} Rxd2 {[%emt 0:00:10]} 49. Ra5+ {[%emt 0:00:19]} Kf4 {[%emt 0:00:15]} 50. b7 {[%emt 0:00:26]} Rd1+ {[%emt 0:00:19]} 0-1

[Event "Catalan Youth-ch 2020"]
[Site "Salou"]
[Date "2020.09.06"]
[Round "2.3"]
[White "Sole Pijuan, Ferran"]
[Black "Estruch Andreu, Guim"]
[Result "1-0"]
[ECO "E73"]
[WhiteElo "2127"]
[BlackElo "1968"]
[Annotator "ChessBase"]
[PlyCount "66"]
[EventDate "2020.09.07"]
[EventType "swiss"]
[EventCountry "ESP"]
[SourceTitle "playchess.com"]
[Source "ChessBase"]
[SourceQuality "1"]
[TimeControl "5400+30"]

1. d4 {[%emt 0:00:00]} Nf6 {[%emt 0:00:00]} 2. c4 {[%emt 0:00:00]} g6 {[%emt 0:00:22]} 3. Nc3 {[%emt 0:00:29]} Bg7 {[%emt 0:00:24]} 4. e4 {[%emt 0:01:00]} d6 5. Be2 {[%emt 0:02:35]} O-O {[%emt 0:01:38]} 6. Bg5 {[%emt 0:01:15]} h6 {[%emt 0:05:29]} 7. Be3 {[%emt 0:00:37]} e5 {[%emt 0:01:44]} 8. d5 {[%emt 0:03:11]} a5 {[%emt 0:03:01]} 9. h4 {[%emt 0:06:32]} Na6 10. Qd2 {[%emt 0:04:37]} Nc5 {[%emt 0:07:38]} 11. f3 {[%emt 0:07:27]} Kh7 {[%emt 0:00:00]} 12. g4 {[%emt 0:00:30]} Ng8 {[%emt 0:18:39]} 13. O-O-O {[%emt 0:10:34]} Bd7 {[%emt 0:18:19]} 14. Nh3 {[%emt 0:09:43]} Na4 {[%emt 0:03:48]} 15. Nxa4 {[%emt 0:00:30]} Bxa4 {[%emt 0:00:30]} 16. Rdg1 {[%emt 0:08:51]} Bd7 {[%emt 0:06:00]} 17. Bd3 {[%emt 0:06:28]} Qe7 {[%emt 0:06:54]} 18. Ng5+ {[%emt 0:00:00]} Kh8 {[%emt 0:06:03]} 19. h5 {[%emt 0:05:01]} b5 {[%emt 0:01:47]} 20. cxb5 {[%emt 0:03:10]} a4 {[%emt 0:01:05]} 21. hxg6 {[%emt 0:07:05]} fxg6 {[%emt 0:05:50]} 22. Rg2 {[%emt 0:07:41]} Rf4 {[%emt 0:00:00]} 23. Bxf4 {[%emt 0:00:30]} exf4 {[%emt 0:00:00]} 24. Ne6 {[%emt 0:00:30]} Bxe6 {[%emt 0:00:00]} 25. dxe6 {[%emt 0:00:30]} Qxe6 {[%emt 0:00:05]} 26. a3 {[%emt 0:00:30]} g5 {[%emt 0:00:30]} 27. Kb1 {[%emt 0:00:30]} Nf6 {[%emt 0:05:10]} 28. Rc1 {[%emt 0:04:30]} Nd7 {[%emt 0:04:20]} 29. Bc4 Qe5 {[%emt 0:00:02]} 30. Qd5 {[%emt 0:01:00]} Qxd5 {[%emt 0:00:30]} 31. Bxd5 {[%emt 0:00:30]} Ra7 {[%emt 0:02:51]} 32. Rc6 {[%emt 0:02:00]} Nc5 {[%emt 0:01:12]} 33. b6 {[%emt 0:00:30]} cxb6 {[%emt 0:01:58]} 1-0

[Event "Catalan Youth-ch 2020"]
[Site "Salou"]
[Date "2020.09.06"]
[Round "2.3"]
[White "Garcia Caro, Juan Alberto"]
[Black "Alcon Llosada, Jaume"]
[Result "1-0"]
[ECO "B19"]
[WhiteElo "1933"]
[BlackElo "1611"]
[Annotator "ChessBase"]
[PlyCount "49"]
[EventDate "2020.09.07"]
[EventType "swiss"]
[EventCountry "ESP"]
[SourceTitle "playchess.com"]
[Source "ChessBase"]
[SourceQuality "1"]
[TimeControl "5400+30"]

1. e4 {[%emt 0:00:00]} c6 {[%emt 0:00:00]} 2. d4 {[%emt 0:00:00]} d5 {[%emt 0:00:46]} 3. Nd2 {[%emt 0:00:00]} dxe4 {[%emt 0:00:20]} 4. Nxe4 {[%emt 0:00:07]} Bf5 {[%emt 0:00:08]} 5. Ng3 {[%emt 0:00:19]} Bg6 {[%emt 0:00:19]} 6. h4 {[%emt 0:00:35]} h6 {[%emt 0:00:14]} 7. Nf3 {[%emt 0:00:25]} Nd7 {[%emt 0:00:17]} 8. h5 {[%emt 0:00:31]} Bh7 {[%emt 0:00:18]} 9. Bd3 {[%emt 0:00:29]} Bxd3 {[%emt 0:00:22]} 10. Qxd3 {[%emt 0:00:19]} e6 {[%emt 0:00:30]} 11. Bd2 {[%emt 0:00:44]} Ngf6 {[%emt 0:00:37]} 12. O-O-O {[%emt 0:01:01]} Be7 {[%emt 0:00:33]} 13. Kb1 {[%emt 0:01:22]} Qb6 {[%emt 0:00:41]} 14. Ne5 {[%emt 0:16:33]} Nxe5 {[%emt 0:03:44]} 15. dxe5 {[%emt 0:00:07]} Nd5 {[%emt 0:00:31]} 16. c4 {[%emt 0:00:46]} Nb4 {[%emt 0:01:19]} 17. Bxb4 {[%emt 0:01:24]} Bxb4 {[%emt 0:00:44]} 18. Qd7+ {[%emt 0:00:56]} Kf8 {[%emt 0:00:07]} 19. Ne4 {[%emt 0:01:36]} Ba3 {[%emt 0:01:25]} 20. Rd2 {[%emt 0:08:38]} Be7 {[%emt 0:07:07]} 21. Rhd1 {[%emt 0:00:40]} Rh7 {[%emt 0:01:06]} 22. Rd3 {[%emt 0:04:06]} Rd8 {[%emt 0:02:10]} 23. Qxd8+ {[%emt 0:00:18]} Bxd8 {[%emt 0:01:48]} 24. Rxd8+ {[%emt 0:00:06]} Ke7 {[%emt 0:00:19]} 25. R1d7# {[%emt 0:00:05]} 1-0

[Event "Catalan Youth-ch 2020"]
[Site "Salou"]
[Date "2020.09.06"]
[Round "2.4"]
[White "De Santiago Gordo, Abel"]
[Black "Saguillo Gonzalez, Oriol"]
[Result "0-1"]
[ECO "E20"]
[WhiteElo "1761"]
[BlackElo "2124"]
[Annotator "ChessBase"]
[PlyCount "58"]
[EventDate "2020.09.07"]
[EventType "swiss"]
[EventCountry "ESP"]
[SourceTitle "playchess.com"]
[Source "ChessBase"]
[SourceQuality "1"]
[TimeControl "5400+30"]

1. d4 {[%emt 0:01:22]} Nf6 {[%emt 0:00:00]} 2. c4 {[%emt 0:01:57]} e6 {[%emt 0:01:49]} 3. Nc3 {[%emt 0:00:00]} Bb4 {[%emt 0:00:11]} 4. f3 {[%emt 0:04:00]} c5 {[%emt 0:00:41]} 5. d5 {[%emt 0:00:00]} O-O {[%emt 0:03:56]} 6. e4 {[%emt 0:00:00]} b5 7. e5 {[%emt 0:01:53]} Ne8 {[%emt 0:01:42]} 8. f4 {[%emt 0:00:00]} exd5 {[%emt 0:00:10]} 9. cxd5 {[%emt 0:00:00]} d6 {[%emt 0:00:30]} 10. Nf3 {[%emt 0:10:37]} Bb7 11. Bxb5 {[%emt 0:04:12]} dxe5 12. fxe5 {[%emt 0:03:12]} Nc7 13. Bc4 {[%emt 0:05:11]} Nxd5 {[%emt 0:06:34]} 14. O-O {[%emt 0:02:44]} Nxc3 {[%emt 0:00:09]} 15. bxc3 {[%emt 0:03:23]} Qxd1 {[%emt 0:24:04]} 16. Rxd1 {[%emt 0:00:17]} Bxc3 {[%emt 0:00:11]} 17. Rb1 {[%emt 0:05:46]} Bxf3 {[%emt 0:06:18]} 18. gxf3 {[%emt 0:00:16]} Nc6 {[%emt 0:10:35]} 19. e6 {[%emt 0:00:55]} fxe6 {[%emt 0:00:00]} 20. Bxe6+ {[%emt 0:00:00]} Kh8 {[%emt 0:00:00]} 21. Bd5 {[%emt 0:07:11]} Rad8 22. Kg2 {[%emt 0:09:06]} Nb4 23. Bb3 {[%emt 0:09:38]} Rxd1 {[%emt 0:06:24]} 24. Bxd1 {[%emt 0:00:00]} Nxa2 25. Bg5 {[%emt 0:06:00]} Bb4 {[%emt 0:06:39]} 26. Bb3 {[%emt 0:00:26]} Nc3 {[%emt 0:00:00]} 27. Rc1 {[%emt 0:00:00]} a5 28. Be7 {[%emt 0:00:48]} Rc8 {[%emt 0:02:22]} 29. f4 {[%emt 0:01:52]} c4 {[%emt 0:00:03]} 0-1

[Event "Catalan Youth-ch 2020"]
[Site "Salou"]
[Date "2020.09.06"]
[Round "2.4"]
[White "Compte Auge, Lluis"]
[Black "Salinas Tomas, Daniel"]
[Result "0-1"]
[ECO "C50"]
[WhiteElo "1429"]
[BlackElo "1979"]
[Annotator "ChessBase"]
[PlyCount "40"]
[EventDate "2020.09.07"]
[EventType "swiss"]
[EventCountry "ESP"]
[SourceTitle "playchess.com"]
[Source "ChessBase"]
[SourceQuality "1"]
[TimeControl "5400+30"]

1. e4 {[%emt 0:00:00]} e5 {[%emt 0:00:00]} 2. Nf3 {[%emt 0:00:00]} Nc6 {[%emt 0:00:08]} 3. Bc4 {[%emt 0:00:29]} g6 {[%emt 0:00:44]} 4. d3 {[%emt 0:05:31]} Bg7 {[%emt 0:02:13]} 5. Be3 {[%emt 0:02:13]} Na5 {[%emt 0:02:23]} 6. Qd2 {[%emt 0:02:51]} Nxc4 {[%emt 0:00:52]} 7. dxc4 {[%emt 0:00:29]} d6 {[%emt 0:02:35]} 8. h3 {[%emt 0:01:10]} Be6 {[%emt 0:03:02]} 9. Na3 {[%emt 0:15:42]} Nf6 {[%emt 0:02:19]} 10. O-O {[%emt 0:00:40]} Nxe4 {[%emt 0:01:17]} 11. Qb4 {[%emt 0:04:20]} b6 {[%emt 0:05:17]} 12. Rfe1 {[%emt 0:08:21]} Nc5 {[%emt 0:00:45]} 13. Bxc5 {[%emt 0:01:57]} bxc5 {[%emt 0:00:12]} 14. Qb7 {[%emt 0:03:13]} O-O {[%emt 0:01:56]} 15. b3 {[%emt 0:00:49]} Rb8 {[%emt 0:00:42]} 16. Qe4 {[%emt 0:00:50]} f5 {[%emt 0:01:31]} 17. Qe3 {[%emt 0:01:21]} e4 {[%emt 0:02:35]} 18. Rad1 {[%emt 0:00:35]} Bd7 {[%emt 0:01:00]} 19. Nd2 {[%emt 0:00:32]} Bc6 {[%emt 0:00:47]} 20. f3 {[%emt 0:02:27]} Bd4 {[%emt 0:00:53]} 0-1

[Event "Catalan Youth-ch 2020"]
[Site "Salou"]
[Date "2020.09.06"]
[Round "2.5"]
[White "Domene Mulyukov, Alexander"]
[Black "Blasco Cardona, Pol"]
[Result "1-0"]
[ECO "B40"]
[WhiteElo "1931"]
[BlackElo "1426"]
[Annotator "ChessBase"]
[PlyCount "65"]
[EventDate "2020.09.07"]
[EventType "swiss"]
[EventCountry "ESP"]
[SourceTitle "playchess.com"]
[Source "ChessBase"]
[SourceQuality "1"]
[TimeControl "5400+30"]

1. e4 {[%emt 0:00:00]} e6 {[%emt 0:00:00]} 2. d3 {[%emt 0:00:00]} c5 {[%emt 0:01:03]} 3. Nf3 {[%emt 0:00:12]} Nc6 {[%emt 0:00:59]} 4. g3 {[%emt 0:00:12]} d5 {[%emt 0:01:20]} 5. Nbd2 {[%emt 0:00:12]} g6 {[%emt 0:01:01]} 6. Bg2 {[%emt 0:04:40]} Bg7 {[%emt 0:01:39]} 7. h4 {[%emt 0:01:35]} h5 {[%emt 0:10:31]} 8. Ng5 {[%emt 0:05:40]} Nf6 {[%emt 0:10:19]} 9. O-O {[%emt 0:05:36]} O-O {[%emt 0:10:23]} 10. Re1 {[%emt 0:05:08]} e5 {[%emt 0:08:35]} 11. c3 {[%emt 0:02:26]} Be6 {[%emt 0:07:11]} 12. f4 {[%emt 0:06:38]} Bg4 {[%emt 0:03:03]} 13. Qb3 {[%emt 0:02:01]} Na5 {[%emt 0:02:14]} 14. Qa3 {[%emt 0:00:43]} exf4 {[%emt 0:00:46]} 15. e5 {[%emt 0:01:14]} Nd7 {[%emt 0:05:59]} 16. gxf4 {[%emt 0:00:34]} Be6 {[%emt 0:00:40]} 17. Ndf3 {[%emt 0:04:06]} b5 {[%emt 0:01:02]} 18. Nxe6 {[%emt 0:01:05]} fxe6 {[%emt 0:00:10]} 19. Ng5 {[%emt 0:00:05]} Qb6 {[%emt 0:00:17]} 20. Nxe6 {[%emt 0:02:16]} Qxe6 {[%emt 0:01:06]} 21. Qxa5 {[%emt 0:00:05]} a6 {[%emt 0:01:11]} 22. Be3 {[%emt 0:03:53]} Rac8 {[%emt 0:03:31]} 23. c4 {[%emt 0:00:39]} dxc4 {[%emt 0:01:14]} 24. dxc4 {[%emt 0:00:08]} bxc4 {[%emt 0:00:41]} 25. Rad1 {[%emt 0:00:32]} Kh7 {[%emt 0:00:46]} 26. Rd6 {[%emt 0:01:50]} Qg4 {[%emt 0:01:28]} 27. Qd2 {[%emt 0:10:26]} Nb8 {[%emt 0:02:14]} 28. Qc2 {[%emt 0:09:06]} Bh6 {[%emt 0:02:49]} 29. Rf1 {[%emt 0:02:06]} Rc6 {[%emt 0:01:37]} 30. Qe4 {[%emt 0:01:08]} Rfc8 {[%emt 0:02:28]} 31. Rf3 {[%emt 0:03:36]} Qxh4 {[%emt 0:01:56]} 32. Bf2 {[%emt 0:00:40]} Qe7 {[%emt 0:00:28]} 33. Qxg6+ {[%emt 0:00:18]} 1-0

[Event "Catalan Youth-ch 2020"]
[Site "Salou"]
[Date "2020.09.06"]
[Round "2.5"]
[White "Casares Bonals, Ainhoa"]
[Black "Martin Barcelo, Carles"]
[Result "1/2-1/2"]
[ECO "C03"]
[WhiteElo "1800"]
[BlackElo "2202"]
[Annotator "ChessBase"]
[PlyCount "126"]
[EventDate "2020.09.07"]
[EventType "swiss"]
[EventCountry "ESP"]
[SourceTitle "playchess.com"]
[Source "ChessBase"]
[SourceQuality "1"]
[TimeControl "5400+30"]

1. e4 {[%emt 0:00:00]} e6 {[%emt 0:00:00]} 2. d4 {[%emt 0:00:00]} d5 {[%emt 0:00:00]} 3. Nd2 {[%emt 0:00:11]} Be7 {[%emt 0:00:00]} 4. Bd3 {[%emt 0:03:00]} c5 {[%emt 0:00:16]} 5. dxc5 {[%emt 0:03:06]} Nf6 {[%emt 0:00:10]} 6. exd5 {[%emt 0:01:55]} Qxd5 {[%emt 0:01:12]} 7. Ngf3 {[%emt 0:02:15]} Nbd7 {[%emt 0:01:30]} 8. O-O {[%emt 0:02:18]} O-O {[%emt 0:03:28]} 9. Qe2 {[%emt 0:05:10]} Nxc5 {[%emt 0:05:56]} 10. Bc4 {[%emt 0:01:37]} Qh5 {[%emt 0:02:50]} 11. b3 {[%emt 0:10:36]} a6 {[%emt 0:05:21]} 12. a4 {[%emt 0:01:26]} Nd5 {[%emt 0:01:35]} 13. Bxd5 {[%emt 0:03:38]} Qxd5 {[%emt 0:00:05]} 14. Bb2 {[%emt 0:00:19]} Qf5 {[%emt 0:05:46]} 15. Nc4 {[%emt 0:03:01]} Bd7 {[%emt 0:04:40]} 16. Rfd1 {[%emt 0:09:34]} Rad8 {[%emt 0:21:20]} 17. Ne3 {[%emt 0:07:39]} Qe4 {[%emt 0:00:00]} 18. Rd4 {[%emt 0:01:22]} Qc6 {[%emt 0:00:00]} 19. Rg4 {[%emt 0:01:46]} f6 {[%emt 0:05:16]} 20. Rd4 {[%emt 0:04:33]} e5 {[%emt 0:00:00]} 21. Rdd1 {[%emt 0:02:28]} Be6 {[%emt 0:00:09]} 22. h4 {[%emt 0:01:12]} Ne4 {[%emt 0:02:13]} 23. Qe1 {[%emt 0:08:31]} b6 {[%emt 0:02:49]} 24. Rac1 {[%emt 0:03:59]} Bc5 {[%emt 0:05:35]} 25. c4 {[%emt 0:02:28]} h5 {[%emt 0:01:45]} 26. Nd2 {[%emt 0:03:34]} Bb4 {[%emt 0:07:35]} 27. Nd5 {[%emt 0:03:03]} Bxd5 {[%emt 0:07:32]} 28. cxd5 {[%emt 0:00:17]} Qxd5 {[%emt 0:00:37]} 29. Qxe4 {[%emt 0:03:21]} Bxd2 {[%emt 0:00:23]} 30. Qxd5+ {[%emt 0:03:10]} Rxd5 {[%emt 0:00:04]} 31. Rc6 {[%emt 0:00:05]} Rfd8 {[%emt 0:02:14]} 32. Rxb6 {[%emt 0:00:15]} a5 {[%emt 0:00:22]} 33. Rb5 {[%emt 0:01:37]} Rd3 {[%emt 0:00:04]} 34. Ba3 {[%emt 0:01:26]} Kf7 {[%emt 0:03:37]} 35. Kf1 {[%emt 0:02:01]} Kg6 {[%emt 0:01:29]} 36. Bc5 {[%emt 0:01:30]} e4 {[%emt 0:00:25]} 37. Ke2 {[%emt 0:02:30]} R8d5 {[%emt 0:01:25]} 38. Be3 {[%emt 0:00:32]} Rxb5 {[%emt 0:03:52]} 39. axb5 {[%emt 0:00:16]} Rxb3 {[%emt 0:00:09]} 40. Rxd2 {[%emt 0:00:23]} Rxb5 {[%emt 0:00:06]} 41. Rd4 {[%emt 0:00:43]} Kf5 {[%emt 0:00:55]} 42. Ra4 {[%emt 0:06:37]} Rb3 {[%emt 0:05:50]} 43. Rxa5+ {[%emt 0:00:00]} Kg4 {[%emt 0:00:05]} 44. g3 {[%emt 0:00:00]} f5 {[%emt 0:01:40]} 45. Ra6 {[%emt 0:00:00]} Rb2+ {[%emt 0:00:48]} 46. Bd2 {[%emt 0:00:00]} f4 {[%emt 0:01:00]} 47. Rg6+ {[%emt 0:00:00]} Kh3 {[%emt 0:00:06]} 48. Rxg7 {[%emt 0:00:00]} e3 {[%emt 0:00:13]} 49. fxe3 {[%emt 0:00:00]} fxg3 {[%emt 0:00:04]} 50. Kf3 {[%emt 0:00:01]} Rxd2 {[%emt 0:00:10]} 51. Rxg3+ {[%emt 0:00:03]} Kxh4 {[%emt 0:01:05]} 52. Rg1 {[%emt 0:01:43]} Rd8 {[%emt 0:00:00]} 53. Rh1+ {[%emt 0:00:11]} Kg5 {[%emt 0:00:00]} 54. Rg1+ {[%emt 0:00:07]} Kf6 {[%emt 0:00:00]} 55. Kf4 {[%emt 0:00:29]} Rd2 {[%emt 0:00:56]} 56. Rh1 {[%emt 0:00:52]} Rf2+ {[%emt 0:00:47]} 57. Kg3 {[%emt 0:00:51]} Rf5 {[%emt 0:00:05]} 58. e4 {[%emt 0:00:12]} Rg5+ {[%emt 0:00:34]} 59. Kf3 {[%emt 0:00:51]} Rb5 {[%emt 0:01:18]} 60. Kf4 {[%emt 0:00:18]} Rg5 {[%emt 0:00:11]} 61. Rh4 {[%emt 0:00:54]} Ra5 {[%emt 0:00:27]} 62. Rh1 {[%emt 0:00:31]} Rg5 {[%emt 0:01:38]} 63. Rh4 {[%emt 0:00:00]} Ra5 {[%emt 0:00:08]} 1/2-1/2

[Event "Catalan Youth-ch 2020"]
[Site "Salou"]
[Date "2020.09.06"]
[Round "2.6"]
[White "Juncosa Padros, Ernest"]
[Black "Travesset Sagre, Jan"]
[Result "0-1"]
[ECO "D24"]
[WhiteElo "1796"]
[BlackElo "2093"]
[Annotator "ChessBase"]
[PlyCount "96"]
[EventDate "2020.09.07"]
[EventType "swiss"]
[EventCountry "ESP"]
[SourceTitle "playchess.com"]
[Source "ChessBase"]
[SourceQuality "1"]
[TimeControl "5400+30"]

1. d4 {[%emt 0:00:16]} d5 2. c4 {[%emt 0:00:00]} Bf5 {[%emt 0:00:09]} 3. Nf3 {[%emt 0:10:05]} dxc4 {[%emt 0:00:54]} 4. Nc3 {[%emt 0:00:00]} Nf6 {[%emt 0:00:24]} 5. e3 {[%emt 0:00:00]} e6 {[%emt 0:01:26]} 6. Bxc4 {[%emt 0:00:43]} Be7 {[%emt 0:08:27]} 7. O-O {[%emt 0:01:21]} O-O {[%emt 0:03:24]} 8. Re1 {[%emt 0:09:50]} Nc6 {[%emt 0:05:24]} 9. h3 {[%emt 0:02:05]} Ne4 {[%emt 0:02:29]} 10. Bd3 {[%emt 0:02:03]} Nxc3 {[%emt 0:00:21]} 11. bxc3 {[%emt 0:01:22]} Bxd3 {[%emt 0:04:48]} 12. Qxd3 {[%emt 0:04:04]} Na5 {[%emt 0:12:40]} 13. e4 {[%emt 0:00:56]} c5 {[%emt 0:00:22]} 14. d5 {[%emt 0:12:27]} exd5 {[%emt 0:06:21]} 15. exd5 {[%emt 0:03:13]} c4 {[%emt 0:05:10]} 16. Qe4 {[%emt 0:00:00]} Bf6 {[%emt 0:09:40]} 17. Bb2 {[%emt 0:03:35]} Qd6 {[%emt 0:03:25]} 18. Rad1 {[%emt 0:10:42]} b5 {[%emt 0:02:30]} 19. Nd4 {[%emt 0:02:33]} g6 {[%emt 0:10:02]} 20. Nxb5 {[%emt 0:02:38]} Qb6 {[%emt 0:00:00]} 21. Ba3 {[%emt 0:00:59]} Qxb5 {[%emt 0:00:00]} 22. Bxf8 {[%emt 0:06:04]} Rxf8 {[%emt 0:04:23]} 23. d6 {[%emt 0:03:27]} Bxc3 {[%emt 0:02:29]} 24. d7 {[%emt 0:02:11]} Bf6 {[%emt 0:03:34]} 25. Rd5 {[%emt 0:00:37]} Qb6 {[%emt 0:01:20]} 26. Rb1 {[%emt 0:01:32]} Qc6 {[%emt 0:04:51]} 27. f3 {[%emt 0:00:31]} Nb7 {[%emt 0:01:17]} 28. Rdb5 {[%emt 0:04:59]} Qxe4 {[%emt 0:00:00]} 29. fxe4 {[%emt 0:00:16]} Nc5 {[%emt 0:02:55]} 30. Rd1 {[%emt 0:00:54]} Nxe4 {[%emt 0:00:00]} 31. Rb4 {[%emt 0:10:28]} Nc5 {[%emt 0:00:25]} 32. Rxc4 {[%emt 0:00:00]} Ne6 {[%emt 0:02:15]} 33. Kf1 {[%emt 0:00:07]} a5 {[%emt 0:01:20]} 34. Rd5 {[%emt 0:00:00]} Bd8 {[%emt 0:01:20]} 35. Rc8 {[%emt 0:01:15]} Kg7 {[%emt 0:01:43]} 36. Rd6 {[%emt 0:00:51]} Kf6 {[%emt 0:01:11]} 37. Ke2 {[%emt 0:00:29]} Ke7 {[%emt 0:00:12]} 38. Rd2 {[%emt 0:01:13]} f5 {[%emt 0:01:31]} 39. Kf3 {[%emt 0:00:26]} Rf6 {[%emt 0:00:41]} 40. Ra8 {[%emt 0:02:29]} Ng5+ {[%emt 0:01:42]} 41. Kf4 {[%emt 0:00:39]} Ne4 {[%emt 0:02:20]} 42. Rd5 {[%emt 0:03:36]} Re6 {[%emt 0:01:45]} 43. g4 {[%emt 0:01:05]} Nf6 {[%emt 0:02:44]} 44. Rdxa5 {[%emt 0:00:30]} Bxa5 {[%emt 0:00:00]} 45. Rxa5 {[%emt 0:00:00]} fxg4 {[%emt 0:00:42]} 46. hxg4 {[%emt 0:00:20]} Re4+ {[%emt 0:00:00]} 47. Kf3 {[%emt 0:00:00]} Rxg4 48. Ra6 {[%emt 0:00:44]} Rd4 {[%emt 0:00:12]} 0-1

[Event "Catalan Youth-ch 2020"]
[Site "Salou"]
[Date "2020.09.06"]
[Round "2.6"]
[White "Gil Jimenez, Ruben"]
[Black "Muntal Corrales, Arnau"]
[Result "1/2-1/2"]
[ECO "D05"]
[WhiteElo "1351"]
[BlackElo "1812"]
[Annotator "NA"]
[PlyCount "74"]
[EventDate "2020.09.07"]
[EventType "swiss"]
[EventCountry "ESP"]
[SourceTitle "playchess.com"]
[Source "ChessBase"]
[SourceQuality "1"]
[TimeControl "5400+30"]

1. d4 {[%emt 0:00:00]} d5 {[%emt 0:00:00]} 2. Nf3 {[%emt 0:00:00]} Nf6 {[%emt 0:00:28]} 3. e3 {[%emt 0:00:00]} c5 {[%emt 0:01:02]} 4. b3 {[%emt 0:00:15]} e6 {[%emt 0:01:42]} 5. Nbd2 {[%emt 0:01:20]} Be7 {[%emt 0:01:54]} 6. Bd3 {[%emt 0:00:32]} O-O {[%emt 0:01:30]} 7. Ne5 {[%emt 0:01:13]} Nbd7 {[%emt 0:03:07]} 8. Ndf3 {[%emt 0:02:43]} a6 {[%emt 0:03:38]} 9. a4 {[%emt 0:01:34]} Ne4 {[%emt 0:03:56]} 10. O-O {[%emt 0:02:10]} f5 {[%emt 0:05:52]} 11. Nxd7 {[%emt 0:05:45]} Bxd7 {[%emt 0:01:52]} 12. Bxe4 {[%emt 0:00:40]} fxe4 {[%emt 0:02:34]} 13. Ne5 {[%emt 0:01:11]} Be8 {[%emt 0:07:01]} 14. Bb2 {[%emt 0:02:28]} Rf5 {[%emt 0:05:55]} 15. f3 {[%emt 0:08:42]} exf3 {[%emt 0:12:11]} 16. Rxf3 {[%emt 0:00:00]} Bh5 {[%emt 0:00:43]} 17. g4 {[%emt 0:00:00]} Rxf3 {[%emt 0:01:04]} 18. Qxf3 {[%emt 0:00:00]} Bg6 {[%emt 0:09:03]} 19. dxc5 {[%emt 0:00:30]} Bxc5 {[%emt 0:01:40]} 20. Rf1 {[%emt 0:00:14]} Qf8 {[%emt 0:01:54]} 21. Qxf8+ {[%emt 0:00:53]} Rxf8 {[%emt 0:00:11]} 22. Rxf8+ {[%emt 0:00:15]} Bxf8 {[%emt 0:00:07]} 23. Nxg6 {[%emt 0:00:43]} hxg6 {[%emt 0:00:09]} 24. Be5 {[%emt 0:00:47]} Be7 {[%emt 0:02:42]} 25. Kf2 {[%emt 0:00:52]} Bf6 {[%emt 0:01:09]} 26. Bd4 {[%emt 0:01:14]} Kf7 {[%emt 0:07:46]} 27. Ke2 {[%emt 0:03:01]} Bxd4 {[%emt 0:00:00]} 28. exd4 {[%emt 0:01:34]} e5 {[%emt 0:01:25]} 29. Kd3 {[%emt 0:04:29]} e4+ {[%emt 0:05:58]} 30. Ke3 {[%emt 0:03:15]} Ke6 {[%emt 0:03:31]} 31. c4 {[%emt 0:09:54]} Kd6 {[%emt 0:01:31]} 32. h4 {[%emt 0:00:00]} b6 {[%emt 0:10:42]} 33. Kf4 {[%emt 0:00:00]} Kc6 {[%emt 0:01:22]} 34. Ke3 {[%emt 0:00:00]} b5 {[%emt 0:01:26]} 35. axb5+ {[%emt 0:01:21]} axb5 {[%emt 0:00:43]} 36. cxd5+ Kxd5 37. g5 b4 {[%emt 0:00:02]} 1/2-1/2

[Event "Catalan Youth-ch 2020"]
[Site "Salou"]
[Date "2020.09.06"]
[Round "2.7"]
[White "Roca Planas, Edgar"]
[Black "Marabajan Navas, Saul"]
[Result "1-0"]
[ECO "B31"]
[WhiteElo "2059"]
[BlackElo "1803"]
[Annotator "ChessBase"]
[PlyCount "31"]
[EventDate "2020.09.07"]
[EventType "swiss"]
[EventCountry "ESP"]
[SourceTitle "playchess.com"]
[Source "ChessBase"]
[SourceQuality "1"]
[TimeControl "5400+30"]

1. e4 c5 2. Nf3 Nc6 3. Bb5 g6 4. Bxc6 dxc6 5. d3 {[%emt 0:01:33]} Bg7 {[%emt 0:01:37]} 6. h3 {[%emt 0:02:58]} e5 {[%emt 0:00:04]} 7. a4 {[%emt 0:00:33]} Qe7 {[%emt 0:02:35]} 8. a5 {[%emt 0:00:00]} Nf6 {[%emt 0:03:08]} 9. Be3 {[%emt 0:00:38]} Nd7 10. Qd2 {[%emt 0:03:33]} Nf8 {[%emt 0:13:13]} 11. Bh6 {[%emt 0:10:58]} f6 {[%emt 0:00:00]} 12. Qc3 {[%emt 0:00:15]} Bxh6 {[%emt 0:00:00]} 13. Nbd2 {[%emt 0:07:28]} Be6 {[%emt 0:00:00]} 14. O-O {[%emt 0:00:45]} g5 {[%emt 0:03:38]} 15. Nb3 {[%emt 0:01:55]} c4 {[%emt 0:00:24]} 16. dxc4 {[%emt 0:09:45]} 1-0